Workbook

Sheet Notes
C3: Compute the construction period
C5: Establish the period code
C7: Big Trick is to compute the months per year that depends on the construction versus operating period
C9: Use Eomonth or Edate functions once the months are defined
C11: Compute the start and end date
C13: Use the XIRR function to compute the IRR
C15: To compute annual flows, use the sumif function where the criteria is the year number
C17: PLEASE OPEN THE GENERIC MACROS FILE

Sheet Exercise
C1: Project IRR | D1: =D40 -> 0
B3: Inputs
C6: Start of Construction | D6: 2015-01-01
C7: Start of Operation | D7: 2017-01-01
C8: EPC Cost | D8: 125000
C9: LD | D9: 0
C10: Annual Cash Flow | D10: 40000
C11: Periods per year Construction | D11: 12 | E11: Monthly
C12: Periods per year Opearion | D12: =VLOOKUP(E12,Settings!$D$4:$E$7,2,FALSE) -> 2 | E12: Semi-Annual
C13: Concession Period Yrs | D13: 30
C14: End of Concession | D14: =EDATE(Start_of_Construction,Concession_Period_Yrs*12) -> 2045-01-01
B16: Date Calculations
C18: Operating Counters
C19: Construction Switch
C20: Months per Period
C21: Start Date
C22: End Date
C23: End Year
C24: Year
C25: Days in Period
C26: Operation Switch
B28: Cash Flow
C29: Construction Expenditures
C30: Operating Cash Flow
C31: Net Cash Flow
C33: IRR on Net Cash Flow

Sheet Completed Exercise
C1: Project IRR | D1: =D40 -> 0
B3: Inputs
C6: Start of Construction | D6: 2015-01-01
C7: Start of Operation | D7: 2017-01-01
C8: EPC Cost | D8: 125000
C9: LD | D9: 0
C10: Annual Cash Flow | D10: 40000
C11: Periods per year Construction | D11: 12 | E11: Monthly
C12: Periods per year Opearion | D12: =VLOOKUP(E12,Settings!$D$4:$E$7,2,FALSE) -> 2 | E12: Semi-Annual
C13: Concession Period Yrs | D13: 30
C14: End of Concession | D14: =EDATE(Start_of_Construction,Concession_Period_Yrs*12) -> 2045-01-01
B16: Date Calculations
C18: Operating Counters | D18: Per b/4 COD | E18: =DAYS360(Start_of_Construction,D7)/30 -> 24 | H18: =1-E18 -> -23 | I18: =H18+1 -> -22 | J18: =I18+1 -> -21 | K18: -20 | L18: -19 | M18: -18 | N18: -17 | O18: -16 | P18: -15 | Q18: -14 | R18: -13 | S18: -12 | T18: -11 | U18: -10 | V18: -9 | W18: -8 | X18: -7 | Y18: -6 | Z18: -5 | AA18: -4 | AB18: -3 | AC18: -2 | AD18: -1 | AE18: 0 | AF18: 1 | AG18: 2 | AH18: 3 | AI18: 4 | AJ18: 5 | AK18: 6 | AL18: 7 | AM18: 8 | AN18: 9 | AO18: 10 | AP18: 11 | AQ18: 12 | AR18: 13 | AS18: 14 | AT18: 15 | AU18: 16 | AV18: 17 | AW18: 18 | AX18: 19 | AY18: 20 | AZ18: 21 | BA18: 22 | BB18: 23 | BC18: 24 | BD18: 25 | BE18: 26 | BF18: 27 | BG18: 28 | BH18: 29 | BI18: 30 | BJ18: 31 | BK18: 32 | BL18: 33 | BM18: 34 | BN18: 35 | BO18: 36 | BP18: 37 | BQ18: 38 | BR18: 39 | BS18: 40 | BT18: 41 | BU18: 42 | BV18: =BU18+1 -> 43 | BW18: 44 | BX18: 45 | BY18: 46 | BZ18: 47 | CA18: 48 | CB18: 49 | CC18: 50 | CD18: 51 | CE18: 52 | CF18: 53 | CG18: 54 | CH18: 55 | CI18: 56 | CJ18: 57 | CK18: 58 | CL18: 59 | CM18: 60 | CN18: 61 | CO18: 62 | CP18: 63 | CQ18: 64 | CR18: 65 | CS18: 66 | CT18: 67 | CU18: 68 | CV18: 69 | CW18: 70 | CX18: 71 | CY18: 72 | CZ18: 73 | DA18: 74 | DB18: 75 | DC18: 76 | DD18: 77 | DE18: 78 | DF18: 79 | DG18: 80 | DH18: 81 | DI18: 82 | DJ18: 83 | DK18: 84 | DL18: 85 | DM18: 86 | DN18: 87 | DO18: 88 | DP18: 89 | DQ18: 90 | DR18: 91 | DS18: 92 | DT18: 93 | DU18: 94 | DV18: 95 | DW18: 96 | DX18: 97 | DY18: 98 | DZ18: 99 | EA18: 100 | EB18: 101 | EC18: 102 | ED18: 103 | EE18: 104 | EF18: 105 | EG18: 106 | EH18: =EG18+1 -> 107 | EI18: 108 | EJ18: 109 | EK18: 110 | EL18: 111 | EM18: 112 | EN18: 113 | EO18: 114 | EP18: 115 | EQ18: 116 | ER18: 117 | ES18: 118 | ET18: 119 | EU18: 120 | EV18: 121 | EW18: 122 | EX18: 123 | EY18: 124 | EZ18: 125 | FA18: 126 | FB18: 127 | FC18: 128 | FD18: 129 | FE18: 130 | FF18: 131 | FG18: 132 | FH18: 133 | FI18: 134 | FJ18: 135 | FK18: 136 | FL18: 137 | FM18: 138 | FN18: 139 | FO18: 140 | FP18: 141 | FQ18: 142 | FR18: 143 | FS18: 144 | FT18: 145 | FU18: 146 | FV18: 147 | FW18: 148 | FX18: 149 | FY18: 150 | FZ18: 151 | GA18: 152 | GB18: 153 | GC18: 154 | GD18: 155 | GE18: 156 | GF18: 157 | GG18: 158 | GH18: 159 | GI18: 160 | GJ18: 161 | GK18: 162 | GL18: 163 | GM18: 164 | GN18: 165 | GO18: 166 | GP18: 167 | GQ18: 168 | GR18: 169 | GS18: 170 | GT18: =GS18+1 -> 171 | GU18: 172 | GV18: 173 | GW18: 174 | GX18: 175 | GY18: 176 | GZ18: 177 | HA18: 178 | HB18: 179 | HC18: 180 | HD18: 181 | HE18: 182 | HF18: 183 | HG18: 184 | HH18: 185 | HI18: 186 | HJ18: 187 | HK18: 188 | HL18: 189 | HM18: 190 | HN18: 191 | HO18: 192 | HP18: 193 | HQ18: 194 | HR18: 195 | HS18: 196 | HT18: 197 | HU18: 198 | HV18: 199 | HW18: 200 | HX18: 201 | HY18: 202 | HZ18: 203 | IA18: 204 | IB18: 205 | IC18: 206 | ID18: 207 | IE18: 208 | IF18: 209 | IG18: 210 | IH18: 211 | II18: 212 | IJ18: 213
C19: Construction Switch | H19: =H18<1 -> TRUE | I19: =I18<1 -> TRUE | J19: TRUE | K19: TRUE | L19: TRUE | M19: TRUE | N19: TRUE | O19: TRUE | P19: TRUE | Q19: TRUE | R19: TRUE | S19: TRUE | T19: TRUE | U19: TRUE | V19: TRUE | W19: TRUE | X19: TRUE | Y19: TRUE | Z19: TRUE | AA19: TRUE | AB19: TRUE | AC19: TRUE | AD19: TRUE | AE19: TRUE | AF19: FALSE | AG19: FALSE | AH19: FALSE | AI19: FALSE | AJ19: FALSE | AK19: FALSE | AL19: FALSE | AM19: FALSE | AN19: FALSE | AO19: FALSE | AP19: FALSE | AQ19: FALSE | AR19: FALSE | AS19: FALSE | AT19: FALSE | AU19: FALSE | AV19: FALSE | AW19: FALSE | AX19: FALSE | AY19: FALSE | AZ19: FALSE | BA19: FALSE | BB19: FALSE | BC19: FALSE | BD19: FALSE | BE19: FALSE | BF19: FALSE | BG19: FALSE | BH19: FALSE | BI19: FALSE | BJ19: FALSE | BK19: FALSE | BL19: FALSE | BM19: FALSE | BN19: FALSE | BO19: FALSE | BP19: FALSE | BQ19: FALSE | BR19: FALSE | BS19: FALSE | BT19: FALSE | BU19: =BU18<1 -> FALSE | BV19: FALSE | BW19: FALSE | BX19: FALSE | BY19: FALSE | BZ19: FALSE | CA19: FALSE | CB19: FALSE | CC19: FALSE | CD19: FALSE | CE19: FALSE | CF19: FALSE | CG19: FALSE | CH19: FALSE | CI19: FALSE | CJ19: FALSE | CK19: FALSE | CL19: FALSE | CM19: FALSE | CN19: FALSE | CO19: FALSE | CP19: FALSE | CQ19: FALSE | CR19: FALSE | CS19: FALSE | CT19: FALSE | CU19: FALSE | CV19: FALSE | CW19: FALSE | CX19: FALSE | CY19: FALSE | CZ19: FALSE | DA19: FALSE | DB19: FALSE | DC19: FALSE | DD19: FALSE | DE19: FALSE | DF19: FALSE | DG19: FALSE | DH19: FALSE | DI19: FALSE | DJ19: FALSE | DK19: FALSE | DL19: FALSE | DM19: FALSE | DN19: FALSE | DO19: FALSE | DP19: FALSE | DQ19: FALSE | DR19: FALSE | DS19: FALSE | DT19: FALSE | DU19: FALSE | DV19: FALSE | DW19: FALSE | DX19: FALSE | DY19: FALSE | DZ19: FALSE | EA19: FALSE | EB19: FALSE | EC19: FALSE | ED19: FALSE | EE19: FALSE | EF19: FALSE | EG19: =EG18<1 -> FALSE | EH19: FALSE | EI19: FALSE | EJ19: FALSE | EK19: FALSE | EL19: FALSE | EM19: FALSE | EN19: FALSE | EO19: FALSE | EP19: FALSE | EQ19: FALSE | ER19: FALSE | ES19: FALSE | ET19: FALSE | EU19: FALSE | EV19: FALSE | EW19: FALSE | EX19: FALSE | EY19: FALSE | EZ19: FALSE | FA19: FALSE | FB19: FALSE | FC19: FALSE | FD19: FALSE | FE19: FALSE | FF19: FALSE | FG19: FALSE | FH19: FALSE | FI19: FALSE | FJ19: FALSE | FK19: FALSE | FL19: FALSE | FM19: FALSE | FN19: FALSE | FO19: FALSE | FP19: FALSE | FQ19: FALSE | FR19: FALSE | FS19: FALSE | FT19: FALSE | FU19: FALSE | FV19: FALSE | FW19: FALSE | FX19: FALSE | FY19: FALSE | FZ19: FALSE | GA19: FALSE | GB19: FALSE | GC19: FALSE | GD19: FALSE | GE19: FALSE | GF19: FALSE | GG19: FALSE | GH19: FALSE | GI19: FALSE | GJ19: FALSE | GK19: FALSE | GL19: FALSE | GM19: FALSE | GN19: FALSE | GO19: FALSE | GP19: FALSE | GQ19: FALSE | GR19: FALSE | GS19: =GS18<1 -> FALSE | GT19: FALSE | GU19: FALSE | GV19: FALSE | GW19: FALSE | GX19: FALSE | GY19: FALSE | GZ19: FALSE | HA19: FALSE | HB19: FALSE | HC19: FALSE | HD19: FALSE | HE19: FALSE | HF19: FALSE | HG19: FALSE | HH19: FALSE | HI19: FALSE | HJ19: FALSE | HK19: FALSE | HL19: FALSE | HM19: FALSE | HN19: FALSE | HO19: FALSE | HP19: FALSE | HQ19: FALSE | HR19: FALSE | HS19: FALSE | HT19: FALSE | HU19: FALSE | HV19: FALSE | HW19: FALSE | HX19: FALSE | HY19: FALSE | HZ19: FALSE | IA19: FALSE | IB19: FALSE | IC19: FALSE | ID19: FALSE | IE19: FALSE | IF19: FALSE | IG19: FALSE | IH19: FALSE | II19: FALSE | IJ19: FALSE
C20: Months per Period | H20: =IF(H19,12/Periods_per_yr_Construction,12/Periods_per_yr_Opearion) -> 1 | I20: 1 | J20: 1 | K20: 1 | L20: 1 | M20: 1 | N20: 1 | O20: 1 | P20: 1 | Q20: 1 | R20: 1 | S20: 1 | T20: 1 | U20: 1 | V20: 1 | W20: 1 | X20: 1 | Y20: 1 | Z20: 1 | AA20: 1 | AB20: 1 | AC20: 1 | AD20: 1 | AE20: 1 | AF20: 6 | AG20: 6 | AH20: 6 | AI20: 6 | AJ20: 6 | AK20: 6 | AL20: 6 | AM20: 6 | AN20: 6 | AO20: 6 | AP20: 6 | AQ20: 6 | AR20: 6 | AS20: 6 | AT20: 6 | AU20: 6 | AV20: 6 | AW20: 6 | AX20: 6 | AY20: 6 | AZ20: 6 | BA20: 6 | BB20: 6 | BC20: 6 | BD20: 6 | BE20: 6 | BF20: 6 | BG20: 6 | BH20: 6 | BI20: 6 | BJ20: 6 | BK20: 6 | BL20: 6 | BM20: 6 | BN20: 6 | BO20: 6 | BP20: 6 | BQ20: 6 | BR20: 6 | BS20: 6 | BT20: =IF(BT19,12/Periods_per_yr_Construction,12/Periods_per_yr_Opearion) -> 6 | BU20: 6 | BV20: 6 | BW20: 6 | BX20: 6 | BY20: 6 | BZ20: 6 | CA20: 6 | CB20: 6 | CC20: 6 | CD20: 6 | CE20: 6 | CF20: 6 | CG20: 6 | CH20: 6 | CI20: 6 | CJ20: 6 | CK20: 6 | CL20: 6 | CM20: 6 | CN20: 6 | CO20: 6 | CP20: 6 | CQ20: 6 | CR20: 6 | CS20: 6 | CT20: 6 | CU20: 6 | CV20: 6 | CW20: 6 | CX20: 6 | CY20: 6 | CZ20: 6 | DA20: 6 | DB20: 6 | DC20: 6 | DD20: 6 | DE20: 6 | DF20: 6 | DG20: 6 | DH20: 6 | DI20: 6 | DJ20: 6 | DK20: 6 | DL20: 6 | DM20: 6 | DN20: 6 | DO20: 6 | DP20: 6 | DQ20: 6 | DR20: 6 | DS20: 6 | DT20: 6 | DU20: 6 | DV20: 6 | DW20: 6 | DX20: 6 | DY20: 6 | DZ20: 6 | EA20: 6 | EB20: 6 | EC20: 6 | ED20: 6 | EE20: 6 | EF20: =IF(EF19,12/Periods_per_yr_Construction,12/Periods_per_yr_Opearion) -> 6 | EG20: 6 | EH20: 6 | EI20: 6 | EJ20: 6 | EK20: 6 | EL20: 6 | EM20: 6 | EN20: 6 | EO20: 6 | EP20: 6 | EQ20: 6 | ER20: 6 | ES20: 6 | ET20: 6 | EU20: 6 | EV20: 6 | EW20: 6 | EX20: 6 | EY20: 6 | EZ20: 6 | FA20: 6 | FB20: 6 | FC20: 6 | FD20: 6 | FE20: 6 | FF20: 6 | FG20: 6 | FH20: 6 | FI20: 6 | FJ20: 6 | FK20: 6 | FL20: 6 | FM20: 6 | FN20: 6 | FO20: 6 | FP20: 6 | FQ20: 6 | FR20: 6 | FS20: 6 | FT20: 6 | FU20: 6 | FV20: 6 | FW20: 6 | FX20: 6 | FY20: 6 | FZ20: 6 | GA20: 6 | GB20: 6 | GC20: 6 | GD20: 6 | GE20: 6 | GF20: 6 | GG20: 6 | GH20: 6 | GI20: 6 | GJ20: 6 | GK20: 6 | GL20: 6 | GM20: 6 | GN20: 6 | GO20: 6 | GP20: 6 | GQ20: 6 | GR20: =IF(GR19,12/Periods_per_yr_Construction,12/Periods_per_yr_Opearion) -> 6 | GS20: 6 | GT20: 6 | GU20: 6 | GV20: 6 | GW20: 6 | GX20: 6 | GY20: 6 | GZ20: 6 | HA20: 6 | HB20: 6 | HC20: 6 | HD20: 6 | HE20: 6 | HF20: 6 | HG20: 6 | HH20: 6 | HI20: 6 | HJ20: 6 | HK20: 6 | HL20: 6 | HM20: 6 | HN20: 6 | HO20: 6 | HP20: 6 | HQ20: 6 | HR20: 6 | HS20: 6 | HT20: 6 | HU20: 6 | HV20: 6 | HW20: 6 | HX20: 6 | HY20: 6 | HZ20: 6 | IA20: 6 | IB20: 6 | IC20: 6 | ID20: 6 | IE20: 6 | IF20: 6 | IG20: 6 | IH20: 6 | II20: 6 | IJ20: 6
C21: Start Date
C22: End Date | H22: =G23+1 -> 2015-01-01 | I22: =H23+1 -> 2015-02-01 | J22: 2015-03-01 | K22: 2015-04-01 | L22: 2015-05-01 | M22: 2015-06-01 | N22: 2015-07-01 | O22: 2015-08-01 | P22: 2015-09-01 | Q22: 2015-10-01 | R22: 2015-11-01 | S22: 2015-12-01 | T22: 2016-01-01 | U22: 2016-02-01 | V22: 2016-03-01 | W22: 2016-04-01 | X22: 2016-05-01 | Y22: 2016-06-01 | Z22: 2016-07-01 | AA22: 2016-08-01 | AB22: 2016-09-01 | AC22: 2016-10-01 | AD22: 2016-11-01 | AE22: 2016-12-01 | AF22: 2017-01-01 | AG22: 2017-07-01 | AH22: 2018-01-01 | AI22: 2018-07-01 | AJ22: 2019-01-01 | AK22: 2019-07-01 | AL22: 2020-01-01 | AM22: 2020-07-01 | AN22: 2021-01-01 | AO22: 2021-07-01 | AP22: 2022-01-01 | AQ22: 2022-07-01 | AR22: 2023-01-01 | AS22: 2023-07-01 | AT22: 2024-01-01 | AU22: 2024-07-01 | AV22: 2025-01-01 | AW22: 2025-07-01 | AX22: 2026-01-01 | AY22: 2026-07-01 | AZ22: 2027-01-01 | BA22: 2027-07-01 | BB22: 2028-01-01 | BC22: 2028-07-01 | BD22: 2029-01-01 | BE22: 2029-07-01 | BF22: 2030-01-01 | BG22: 2030-07-01 | BH22: 2031-01-01 | BI22: 2031-07-01 | BJ22: 2032-01-01 | BK22: 2032-07-01 | BL22: 2033-01-01 | BM22: 2033-07-01 | BN22: 2034-01-01 | BO22: 2034-07-01 | BP22: 2035-01-01 | BQ22: 2035-07-01 | BR22: 2036-01-01 | BS22: 2036-07-01 | BT22: 2037-01-01 | BU22: =BT23+1 -> 2037-07-01 | BV22: 2038-01-01 | BW22: 2038-07-01 | BX22: 2039-01-01 | BY22: 2039-07-01 | BZ22: 2040-01-01 | CA22: 2040-07-01 | CB22: 2041-01-01 | CC22: 2041-07-01 | CD22: 2042-01-01 | CE22: 2042-07-01 | CF22: 2043-01-01 | CG22: 2043-07-01 | CH22: 2044-01-01 | CI22: 2044-07-01 | CJ22: 2045-01-01 | CK22: 2045-07-01 | CL22: 2046-01-01 | CM22: 2046-07-01 | CN22: 2047-01-01 | CO22: 2047-07-01 | CP22: 2048-01-01 | CQ22: 2048-07-01 | CR22: 2049-01-01 | CS22: 2049-07-01 | CT22: 2050-01-01 | CU22: 2050-07-01 | CV22: 2051-01-01 | CW22: 2051-07-01 | CX22: 2052-01-01 | CY22: 2052-07-01 | CZ22: 2053-01-01 | DA22: 2053-07-01 | DB22: 2054-01-01 | DC22: 2054-07-01 | DD22: 2055-01-01 | DE22: 2055-07-01 | DF22: 2056-01-01 | DG22: 2056-07-01 | DH22: 2057-01-01 | DI22: 2057-07-01 | DJ22: 2058-01-01 | DK22: 2058-07-01 | DL22: 2059-01-01 | DM22: 2059-07-01 | DN22: 2060-01-01 | DO22: 2060-07-01 | DP22: 2061-01-01 | DQ22: 2061-07-01 | DR22: 2062-01-01 | DS22: 2062-07-01 | DT22: 2063-01-01 | DU22: 2063-07-01 | DV22: 2064-01-01 | DW22: 2064-07-01 | DX22: 2065-01-01 | DY22: 2065-07-01 | DZ22: 2066-01-01 | EA22: 2066-07-01 | EB22: 2067-01-01 | EC22: 2067-07-01 | ED22: 2068-01-01 | EE22: 2068-07-01 | EF22: 2069-01-01 | EG22: =EF23+1 -> 2069-07-01 | EH22: 2070-01-01 | EI22: 2070-07-01 | EJ22: 2071-01-01 | EK22: 2071-07-01 | EL22: 2072-01-01 | EM22: 2072-07-01 | EN22: 2073-01-01 | EO22: 2073-07-01 | EP22: 2074-01-01 | EQ22: 2074-07-01 | ER22: 2075-01-01 | ES22: 2075-07-01 | ET22: 2076-01-01 | EU22: 2076-07-01 | EV22: 2077-01-01 | EW22: 2077-07-01 | EX22: 2078-01-01 | EY22: 2078-07-01 | EZ22: 2079-01-01 | FA22: 2079-07-01 | FB22: 2080-01-01 | FC22: 2080-07-01 | FD22: 2081-01-01 | FE22: 2081-07-01 | FF22: 2082-01-01 | FG22: 2082-07-01 | FH22: 2083-01-01 | FI22: 2083-07-01 | FJ22: 2084-01-01 | FK22: 2084-07-01 | FL22: 2085-01-01 | FM22: 2085-07-01 | FN22: 2086-01-01 | FO22: 2086-07-01 | FP22: 2087-01-01 | FQ22: 2087-07-01 | FR22: 2088-01-01 | FS22: 2088-07-01 | FT22: 2089-01-01 | FU22: 2089-07-01 | FV22: 2090-01-01 | FW22: 2090-07-01 | FX22: 2091-01-01 | FY22: 2091-07-01 | FZ22: 2092-01-01 | GA22: 2092-07-01 | GB22: 2093-01-01 | GC22: 2093-07-01 | GD22: 2094-01-01 | GE22: 2094-07-01 | GF22: 2095-01-01 | GG22: 2095-07-01 | GH22: 2096-01-01 | GI22: 2096-07-01 | GJ22: 2097-01-01 | GK22: 2097-07-01 | GL22: 2098-01-01 | GM22: 2098-07-01 | GN22: 2099-01-01 | GO22: 2099-07-01 | GP22: 2100-01-01 | GQ22: 2100-07-01 | GR22: 2101-01-01 | GS22: =GR23+1 -> 2101-07-01 | GT22: 2102-01-01 | GU22: 2102-07-01 | GV22: 2103-01-01 | GW22: 2103-07-01 | GX22: 2104-01-01 | GY22: 2104-07-01 | GZ22: 2105-01-01 | HA22: 2105-07-01 | HB22: 2106-01-01 | HC22: 2106-07-01 | HD22: 2107-01-01 | HE22: 2107-07-01 | HF22: 2108-01-01 | HG22: 2108-07-01 | HH22: 2109-01-01 | HI22: 2109-07-01 | HJ22: 2110-01-01 | HK22: 2110-07-01 | HL22: 2111-01-01 | HM22: 2111-07-01 | HN22: 2112-01-01 | HO22: 2112-07-01 | HP22: 2113-01-01 | HQ22: 2113-07-01 | HR22: 2114-01-01 | HS22: 2114-07-01 | HT22: 2115-01-01 | HU22: 2115-07-01 | HV22: 2116-01-01 | HW22: 2116-07-01 | HX22: 2117-01-01 | HY22: 2117-07-01 | HZ22: 2118-01-01 | IA22: 2118-07-01 | IB22: 2119-01-01 | IC22: 2119-07-01 | ID22: 2120-01-01 | IE22: 2120-07-01 | IF22: 2121-01-01 | IG22: 2121-07-01 | IH22: 2122-01-01 | II22: 2122-07-01 | IJ22: 2123-01-01
C23: End Year | G23: =Start_of_Construction-1 -> 2014-12-31 | H23: =EDATE(H22,H20)-1 -> 2015-01-31 | I23: =EDATE(I22,I20)-1 -> 2015-02-28 | J23: 2015-03-31 | K23: 2015-04-30 | L23: 2015-05-31 | M23: 2015-06-30 | N23: 2015-07-31 | O23: 2015-08-31 | P23: 2015-09-30 | Q23: 2015-10-31 | R23: 2015-11-30 | S23: 2015-12-31 | T23: 2016-01-31 | U23: 2016-02-29 | V23: 2016-03-31 | W23: 2016-04-30 | X23: 2016-05-31 | Y23: 2016-06-30 | Z23: 2016-07-31 | AA23: 2016-08-31 | AB23: 2016-09-30 | AC23: 2016-10-31 | AD23: 2016-11-30 | AE23: 2016-12-31 | AF23: 2017-06-30 | AG23: 2017-12-31 | AH23: 2018-06-30 | AI23: 2018-12-31 | AJ23: 2019-06-30 | AK23: 2019-12-31 | AL23: 2020-06-30 | AM23: 2020-12-31 | AN23: 2021-06-30 | AO23: 2021-12-31 | AP23: 2022-06-30 | AQ23: 2022-12-31 | AR23: 2023-06-30 | AS23: 2023-12-31 | AT23: 2024-06-30 | AU23: 2024-12-31 | AV23: 2025-06-30 | AW23: 2025-12-31 | AX23: 2026-06-30 | AY23: 2026-12-31 | AZ23: 2027-06-30 | BA23: 2027-12-31 | BB23: 2028-06-30 | BC23: 2028-12-31 | BD23: 2029-06-30 | BE23: 2029-12-31 | BF23: 2030-06-30 | BG23: 2030-12-31 | BH23: 2031-06-30 | BI23: 2031-12-31 | BJ23: 2032-06-30 | BK23: 2032-12-31 | BL23: 2033-06-30 | BM23: 2033-12-31 | BN23: 2034-06-30 | BO23: 2034-12-31 | BP23: 2035-06-30 | BQ23: 2035-12-31 | BR23: 2036-06-30 | BS23: 2036-12-31 | BT23: 2037-06-30 | BU23: =EDATE(BU22,BU20)-1 -> 2037-12-31 | BV23: 2038-06-30 | BW23: 2038-12-31 | BX23: 2039-06-30 | BY23: 2039-12-31 | BZ23: 2040-06-30 | CA23: 2040-12-31 | CB23: 2041-06-30 | CC23: 2041-12-31 | CD23: 2042-06-30 | CE23: 2042-12-31 | CF23: 2043-06-30 | CG23: 2043-12-31 | CH23: 2044-06-30 | CI23: 2044-12-31 | CJ23: 2045-06-30 | CK23: 2045-12-31 | CL23: 2046-06-30 | CM23: 2046-12-31 | CN23: 2047-06-30 | CO23: 2047-12-31 | CP23: 2048-06-30 | CQ23: 2048-12-31 | CR23: 2049-06-30 | CS23: 2049-12-31 | CT23: 2050-06-30 | CU23: 2050-12-31 | CV23: 2051-06-30 | CW23: 2051-12-31 | CX23: 2052-06-30 | CY23: 2052-12-31 | CZ23: 2053-06-30 | DA23: 2053-12-31 | DB23: 2054-06-30 | DC23: 2054-12-31 | DD23: 2055-06-30 | DE23: 2055-12-31 | DF23: 2056-06-30 | DG23: 2056-12-31 | DH23: 2057-06-30 | DI23: 2057-12-31 | DJ23: 2058-06-30 | DK23: 2058-12-31 | DL23: 2059-06-30 | DM23: 2059-12-31 | DN23: 2060-06-30 | DO23: 2060-12-31 | DP23: 2061-06-30 | DQ23: 2061-12-31 | DR23: 2062-06-30 | DS23: 2062-12-31 | DT23: 2063-06-30 | DU23: 2063-12-31 | DV23: 2064-06-30 | DW23: 2064-12-31 | DX23: 2065-06-30 | DY23: 2065-12-31 | DZ23: 2066-06-30 | EA23: 2066-12-31 | EB23: 2067-06-30 | EC23: 2067-12-31 | ED23: 2068-06-30 | EE23: 2068-12-31 | EF23: 2069-06-30 | EG23: =EDATE(EG22,EG20)-1 -> 2069-12-31 | EH23: 2070-06-30 | EI23: 2070-12-31 | EJ23: 2071-06-30 | EK23: 2071-12-31 | EL23: 2072-06-30 | EM23: 2072-12-31 | EN23: 2073-06-30 | EO23: 2073-12-31 | EP23: 2074-06-30 | EQ23: 2074-12-31 | ER23: 2075-06-30 | ES23: 2075-12-31 | ET23: 2076-06-30 | EU23: 2076-12-31 | EV23: 2077-06-30 | EW23: 2077-12-31 | EX23: 2078-06-30 | EY23: 2078-12-31 | EZ23: 2079-06-30 | FA23: 2079-12-31 | FB23: 2080-06-30 | FC23: 2080-12-31 | FD23: 2081-06-30 | FE23: 2081-12-31 | FF23: 2082-06-30 | FG23: 2082-12-31 | FH23: 2083-06-30 | FI23: 2083-12-31 | FJ23: 2084-06-30 | FK23: 2084-12-31 | FL23: 2085-06-30 | FM23: 2085-12-31 | FN23: 2086-06-30 | FO23: 2086-12-31 | FP23: 2087-06-30 | FQ23: 2087-12-31 | FR23: 2088-06-30 | FS23: 2088-12-31 | FT23: 2089-06-30 | FU23: 2089-12-31 | FV23: 2090-06-30 | FW23: 2090-12-31 | FX23: 2091-06-30 | FY23: 2091-12-31 | FZ23: 2092-06-30 | GA23: 2092-12-31 | GB23: 2093-06-30 | GC23: 2093-12-31 | GD23: 2094-06-30 | GE23: 2094-12-31 | GF23: 2095-06-30 | GG23: 2095-12-31 | GH23: 2096-06-30 | GI23: 2096-12-31 | GJ23: 2097-06-30 | GK23: 2097-12-31 | GL23: 2098-06-30 | GM23: 2098-12-31 | GN23: 2099-06-30 | GO23: 2099-12-31 | GP23: 2100-06-30 | GQ23: 2100-12-31 | GR23: 2101-06-30 | GS23: =EDATE(GS22,GS20)-1 -> 2101-12-31 | GT23: 2102-06-30 | GU23: 2102-12-31 | GV23: 2103-06-30 | GW23: 2103-12-31 | GX23: 2104-06-30 | GY23: 2104-12-31 | GZ23: 2105-06-30 | HA23: 2105-12-31 | HB23: 2106-06-30 | HC23: 2106-12-31 | HD23: 2107-06-30 | HE23: 2107-12-31 | HF23: 2108-06-30 | HG23: 2108-12-31 | HH23: 2109-06-30 | HI23: 2109-12-31 | HJ23: 2110-06-30 | HK23: 2110-12-31 | HL23: 2111-06-30 | HM23: 2111-12-31 | HN23: 2112-06-30 | HO23: 2112-12-31 | HP23: 2113-06-30 | HQ23: 2113-12-31 | HR23: 2114-06-30 | HS23: 2114-12-31 | HT23: 2115-06-30 | HU23: 2115-12-31 | HV23: 2116-06-30 | HW23: 2116-12-31 | HX23: 2117-06-30 | HY23: 2117-12-31 | HZ23: 2118-06-30 | IA23: 2118-12-31 | IB23: 2119-06-30 | IC23: 2119-12-31 | ID23: 2120-06-30 | IE23: 2120-12-31 | IF23: 2121-06-30 | IG23: 2121-12-31 | IH23: 2122-06-30 | II23: 2122-12-31 | IJ23: 2123-06-30
C24: Year | H24: =YEAR(H23) -> 2015 | I24: =YEAR(I23) -> 2015 | J24: 2015 | K24: 2015 | L24: 2015 | M24: 2015 | N24: 2015 | O24: 2015 | P24: 2015 | Q24: 2015 | R24: 2015 | S24: 2015 | T24: 2016 | U24: 2016 | V24: 2016 | W24: 2016 | X24: 2016 | Y24: 2016 | Z24: 2016 | AA24: 2016 | AB24: 2016 | AC24: 2016 | AD24: 2016 | AE24: 2016 | AF24: 2017 | AG24: 2017 | AH24: 2018 | AI24: 2018 | AJ24: 2019 | AK24: 2019 | AL24: 2020 | AM24: 2020 | AN24: 2021 | AO24: 2021 | AP24: 2022 | AQ24: 2022 | AR24: 2023 | AS24: 2023 | AT24: 2024 | AU24: 2024 | AV24: 2025 | AW24: 2025 | AX24: 2026 | AY24: 2026 | AZ24: 2027 | BA24: 2027 | BB24: 2028 | BC24: 2028 | BD24: 2029 | BE24: 2029 | BF24: 2030 | BG24: 2030 | BH24: 2031 | BI24: 2031 | BJ24: 2032 | BK24: 2032 | BL24: 2033 | BM24: 2033 | BN24: 2034 | BO24: 2034 | BP24: 2035 | BQ24: 2035 | BR24: 2036 | BS24: 2036 | BT24: 2037 | BU24: =YEAR(BU23) -> 2037 | BV24: 2038 | BW24: 2038 | BX24: 2039 | BY24: 2039 | BZ24: 2040 | CA24: 2040 | CB24: 2041 | CC24: 2041 | CD24: 2042 | CE24: 2042 | CF24: 2043 | CG24: 2043 | CH24: 2044 | CI24: 2044 | CJ24: 2045 | CK24: 2045 | CL24: 2046 | CM24: 2046 | CN24: 2047 | CO24: 2047 | CP24: 2048 | CQ24: 2048 | CR24: 2049 | CS24: 2049 | CT24: 2050 | CU24: 2050 | CV24: 2051 | CW24: 2051 | CX24: 2052 | CY24: 2052 | CZ24: 2053 | DA24: 2053 | DB24: 2054 | DC24: 2054 | DD24: 2055 | DE24: 2055 | DF24: 2056 | DG24: 2056 | DH24: 2057 | DI24: 2057 | DJ24: 2058 | DK24: 2058 | DL24: 2059 | DM24: 2059 | DN24: 2060 | DO24: 2060 | DP24: 2061 | DQ24: 2061 | DR24: 2062 | DS24: 2062 | DT24: 2063 | DU24: 2063 | DV24: 2064 | DW24: 2064 | DX24: 2065 | DY24: 2065 | DZ24: 2066 | EA24: 2066 | EB24: 2067 | EC24: 2067 | ED24: 2068 | EE24: 2068 | EF24: 2069 | EG24: =YEAR(EG23) -> 2069 | EH24: 2070 | EI24: 2070 | EJ24: 2071 | EK24: 2071 | EL24: 2072 | EM24: 2072 | EN24: 2073 | EO24: 2073 | EP24: 2074 | EQ24: 2074 | ER24: 2075 | ES24: 2075 | ET24: 2076 | EU24: 2076 | EV24: 2077 | EW24: 2077 | EX24: 2078 | EY24: 2078 | EZ24: 2079 | FA24: 2079 | FB24: 2080 | FC24: 2080 | FD24: 2081 | FE24: 2081 | FF24: 2082 | FG24: 2082 | FH24: 2083 | FI24: 2083 | FJ24: 2084 | FK24: 2084 | FL24: 2085 | FM24: 2085 | FN24: 2086 | FO24: 2086 | FP24: 2087 | FQ24: 2087 | FR24: 2088 | FS24: 2088 | FT24: 2089 | FU24: 2089 | FV24: 2090 | FW24: 2090 | FX24: 2091 | FY24: 2091 | FZ24: 2092 | GA24: 2092 | GB24: 2093 | GC24: 2093 | GD24: 2094 | GE24: 2094 | GF24: 2095 | GG24: 2095 | GH24: 2096 | GI24: 2096 | GJ24: 2097 | GK24: 2097 | GL24: 2098 | GM24: 2098 | GN24: 2099 | GO24: 2099 | GP24: 2100 | GQ24: 2100 | GR24: 2101 | GS24: =YEAR(GS23) -> 2101 | GT24: 2102 | GU24: 2102 | GV24: 2103 | GW24: 2103 | GX24: 2104 | GY24: 2104 | GZ24: 2105 | HA24: 2105 | HB24: 2106 | HC24: 2106 | HD24: 2107 | HE24: 2107 | HF24: 2108 | HG24: 2108 | HH24: 2109 | HI24: 2109 | HJ24: 2110 | HK24: 2110 | HL24: 2111 | HM24: 2111 | HN24: 2112 | HO24: 2112 | HP24: 2113 | HQ24: 2113 | HR24: 2114 | HS24: 2114 | HT24: 2115 | HU24: 2115 | HV24: 2116 | HW24: 2116 | HX24: 2117 | HY24: 2117 | HZ24: 2118 | IA24: 2118 | IB24: 2119 | IC24: 2119 | ID24: 2120 | IE24: 2120 | IF24: 2121 | IG24: 2121 | IH24: 2122 | II24: 2122 | IJ24: 2123
C25: Days in Period | H25: =H23-H22+1 -> 31 | I25: =I23-I22+1 -> 28 | J25: 31 | K25: 30 | L25: 31 | M25: 30 | N25: 31 | O25: 31 | P25: 30 | Q25: 31 | R25: 30 | S25: 31 | T25: 31 | U25: 29 | V25: 31 | W25: 30 | X25: 31 | Y25: 30 | Z25: 31 | AA25: 31 | AB25: 30 | AC25: 31 | AD25: 30 | AE25: 31 | AF25: 181 | AG25: 184 | AH25: 181 | AI25: 184 | AJ25: 181 | AK25: 184 | AL25: 182 | AM25: 184 | AN25: 181 | AO25: 184 | AP25: 181 | AQ25: 184 | AR25: 181 | AS25: 184 | AT25: 182 | AU25: 184 | AV25: 181 | AW25: 184 | AX25: 181 | AY25: 184 | AZ25: 181 | BA25: 184 | BB25: 182 | BC25: 184 | BD25: 181 | BE25: 184 | BF25: 181 | BG25: 184 | BH25: 181 | BI25: 184 | BJ25: 182 | BK25: 184 | BL25: 181 | BM25: 184 | BN25: 181 | BO25: 184 | BP25: 181 | BQ25: 184 | BR25: 182 | BS25: 184 | BT25: 181 | BU25: =BU23-BU22+1 -> 184 | BV25: 181 | BW25: 184 | BX25: 181 | BY25: 184 | BZ25: 182 | CA25: 184 | CB25: 181 | CC25: 184 | CD25: 181 | CE25: 184 | CF25: 181 | CG25: 184 | CH25: 182 | CI25: 184 | CJ25: 181 | CK25: 184 | CL25: 181 | CM25: 184 | CN25: 181 | CO25: 184 | CP25: 182 | CQ25: 184 | CR25: 181 | CS25: 184 | CT25: 181 | CU25: 184 | CV25: 181 | CW25: 184 | CX25: 182 | CY25: 184 | CZ25: 181 | DA25: 184 | DB25: 181 | DC25: 184 | DD25: 181 | DE25: 184 | DF25: 182 | DG25: 184 | DH25: 181 | DI25: 184 | DJ25: 181 | DK25: 184 | DL25: 181 | DM25: 184 | DN25: 182 | DO25: 184 | DP25: 181 | DQ25: 184 | DR25: 181 | DS25: 184 | DT25: 181 | DU25: 184 | DV25: 182 | DW25: 184 | DX25: 181 | DY25: 184 | DZ25: 181 | EA25: 184 | EB25: 181 | EC25: 184 | ED25: 182 | EE25: 184 | EF25: 181 | EG25: =EG23-EG22+1 -> 184 | EH25: 181 | EI25: 184 | EJ25: 181 | EK25: 184 | EL25: 182 | EM25: 184 | EN25: 181 | EO25: 184 | EP25: 181 | EQ25: 184 | ER25: 181 | ES25: 184 | ET25: 182 | EU25: 184 | EV25: 181 | EW25: 184 | EX25: 181 | EY25: 184 | EZ25: 181 | FA25: 184 | FB25: 182 | FC25: 184 | FD25: 181 | FE25: 184 | FF25: 181 | FG25: 184 | FH25: 181 | FI25: 184 | FJ25: 182 | FK25: 184 | FL25: 181 | FM25: 184 | FN25: 181 | FO25: 184 | FP25: 181 | FQ25: 184 | FR25: 182 | FS25: 184 | FT25: 181 | FU25: 184 | FV25: 181 | FW25: 184 | FX25: 181 | FY25: 184 | FZ25: 182 | GA25: 184 | GB25: 181 | GC25: 184 | GD25: 181 | GE25: 184 | GF25: 181 | GG25: 184 | GH25: 182 | GI25: 184 | GJ25: 181 | GK25: 184 | GL25: 181 | GM25: 184 | GN25: 181 | GO25: 184 | GP25: 181 | GQ25: 184 | GR25: 181 | GS25: =GS23-GS22+1 -> 184 | GT25: 181 | GU25: 184 | GV25: 181 | GW25: 184 | GX25: 182 | GY25: 184 | GZ25: 181 | HA25: 184 | HB25: 181 | HC25: 184 | HD25: 181 | HE25: 184 | HF25: 182 | HG25: 184 | HH25: 181 | HI25: 184 | HJ25: 181 | HK25: 184 | HL25: 181 | HM25: 184 | HN25: 182 | HO25: 184 | HP25: 181 | HQ25: 184 | HR25: 181 | HS25: 184 | HT25: 181 | HU25: 184 | HV25: 182 | HW25: 184 | HX25: 181 | HY25: 184 | HZ25: 181 | IA25: 184 | IB25: 181 | IC25: 184 | ID25: 182 | IE25: 184 | IF25: 181 | IG25: 184 | IH25: 181 | II25: 184 | IJ25: 181
C26: Operation Switch | E26: =D7 -> 2017-01-01 | F26: =D14 -> 2045-01-01 | G26: =COUNTIF(H26:IJ26,TRUE) -> 56 | H26: =AND(H22>=$E$26,H22<$F$26) -> FALSE | I26: =AND(I22>=$E$26,I22<$F$26) -> FALSE | J26: FALSE | K26: FALSE | L26: FALSE | M26: FALSE | N26: FALSE | O26: FALSE | P26: FALSE | Q26: FALSE | R26: FALSE | S26: FALSE | T26: FALSE | U26: FALSE | V26: FALSE | W26: FALSE | X26: FALSE | Y26: FALSE | Z26: FALSE | AA26: FALSE | AB26: FALSE | AC26: FALSE | AD26: FALSE | AE26: FALSE | AF26: TRUE | AG26: TRUE | AH26: TRUE | AI26: TRUE | AJ26: TRUE | AK26: TRUE | AL26: TRUE | AM26: TRUE | AN26: TRUE | AO26: TRUE | AP26: TRUE | AQ26: TRUE | AR26: TRUE | AS26: TRUE | AT26: TRUE | AU26: TRUE | AV26: TRUE | AW26: TRUE | AX26: TRUE | AY26: TRUE | AZ26: TRUE | BA26: TRUE | BB26: TRUE | BC26: TRUE | BD26: TRUE | BE26: TRUE | BF26: TRUE | BG26: TRUE | BH26: TRUE | BI26: TRUE | BJ26: TRUE | BK26: TRUE | BL26: TRUE | BM26: TRUE | BN26: TRUE | BO26: TRUE | BP26: TRUE | BQ26: TRUE | BR26: TRUE | BS26: TRUE | BT26: TRUE | BU26: =AND(BU22>=$E$26,BU22<$F$26) -> TRUE | BV26: TRUE | BW26: TRUE | BX26: TRUE | BY26: TRUE | BZ26: TRUE | CA26: TRUE | CB26: TRUE | CC26: TRUE | CD26: TRUE | CE26: TRUE | CF26: TRUE | CG26: TRUE | CH26: TRUE | CI26: TRUE | CJ26: FALSE | CK26: FALSE | CL26: FALSE | CM26: FALSE | CN26: FALSE | CO26: FALSE | CP26: FALSE | CQ26: FALSE | CR26: FALSE | CS26: FALSE | CT26: FALSE | CU26: FALSE | CV26: FALSE | CW26: FALSE | CX26: FALSE | CY26: FALSE | CZ26: FALSE | DA26: FALSE | DB26: FALSE | DC26: FALSE | DD26: FALSE | DE26: FALSE | DF26: FALSE | DG26: FALSE | DH26: FALSE | DI26: FALSE | DJ26: FALSE | DK26: FALSE | DL26: FALSE | DM26: FALSE | DN26: FALSE | DO26: FALSE | DP26: FALSE | DQ26: FALSE | DR26: FALSE | DS26: FALSE | DT26: FALSE | DU26: FALSE | DV26: FALSE | DW26: FALSE | DX26: FALSE | DY26: FALSE | DZ26: FALSE | EA26: FALSE | EB26: FALSE | EC26: FALSE | ED26: FALSE | EE26: FALSE | EF26: FALSE | EG26: =AND(EG22>=$E$26,EG22<$F$26) -> FALSE | EH26: FALSE | EI26: FALSE | EJ26: FALSE | EK26: FALSE | EL26: FALSE | EM26: FALSE | EN26: FALSE | EO26: FALSE | EP26: FALSE | EQ26: FALSE | ER26: FALSE | ES26: FALSE | ET26: FALSE | EU26: FALSE | EV26: FALSE | EW26: FALSE | EX26: FALSE | EY26: FALSE | EZ26: FALSE | FA26: FALSE | FB26: FALSE | FC26: FALSE | FD26: FALSE | FE26: FALSE | FF26: FALSE | FG26: FALSE | FH26: FALSE | FI26: FALSE | FJ26: FALSE | FK26: FALSE | FL26: FALSE | FM26: FALSE | FN26: FALSE | FO26: FALSE | FP26: FALSE | FQ26: FALSE | FR26: FALSE | FS26: FALSE | FT26: FALSE | FU26: FALSE | FV26: FALSE | FW26: FALSE | FX26: FALSE | FY26: FALSE | FZ26: FALSE | GA26: FALSE | GB26: FALSE | GC26: FALSE | GD26: FALSE | GE26: FALSE | GF26: FALSE | GG26: FALSE | GH26: FALSE | GI26: FALSE | GJ26: FALSE | GK26: FALSE | GL26: FALSE | GM26: FALSE | GN26: FALSE | GO26: FALSE | GP26: FALSE | GQ26: FALSE | GR26: FALSE | GS26: =AND(GS22>=$E$26,GS22<$F$26) -> FALSE | GT26: FALSE | GU26: FALSE | GV26: FALSE | GW26: FALSE | GX26: FALSE | GY26: FALSE | GZ26: FALSE | HA26: FALSE | HB26: FALSE | HC26: FALSE | HD26: FALSE | HE26: FALSE | HF26: FALSE | HG26: FALSE | HH26: FALSE | HI26: FALSE | HJ26: FALSE | HK26: FALSE | HL26: FALSE | HM26: FALSE | HN26: FALSE | HO26: FALSE | HP26: FALSE | HQ26: FALSE | HR26: FALSE | HS26: FALSE | HT26: FALSE | HU26: FALSE | HV26: FALSE | HW26: FALSE | HX26: FALSE | HY26: FALSE | HZ26: FALSE | IA26: FALSE | IB26: FALSE | IC26: FALSE | ID26: FALSE | IE26: FALSE | IF26: FALSE | IG26: FALSE | IH26: FALSE | II26: FALSE | IJ26: FALSE
B28: Cash Flow
C29: Construction Expenditures | D29: Cost | E29: =EPC_Cost -> 125000 | F29: =E18 -> 24 | H29: =$E$29/$F$29*H19 -> 5208.333333 | I29: =$E$29/$F$29*I19 -> 5208.333333 | J29: 5208.333333 | K29: 5208.333333 | L29: 5208.333333 | M29: 5208.333333 | N29: 5208.333333 | O29: 5208.333333 | P29: 5208.333333 | Q29: 5208.333333 | R29: 5208.333333 | S29: 5208.333333 | T29: 5208.333333 | U29: 5208.333333 | V29: 5208.333333 | W29: 5208.333333 | X29: 5208.333333 | Y29: 5208.333333 | Z29: 5208.333333 | AA29: 5208.333333 | AB29: 5208.333333 | AC29: 5208.333333 | AD29: 5208.333333 | AE29: 5208.333333 | AF29: 0 | AG29: 0 | AH29: 0 | AI29: 0 | AJ29: 0 | AK29: 0 | AL29: 0 | AM29: 0 | AN29: 0 | AO29: 0 | AP29: 0 | AQ29: 0 | AR29: 0 | AS29: 0 | AT29: 0 | AU29: 0 | AV29: 0 | AW29: 0 | AX29: 0 | AY29: 0 | AZ29: 0 | BA29: 0 | BB29: 0 | BC29: 0 | BD29: 0 | BE29: 0 | BF29: 0 | BG29: 0 | BH29: 0 | BI29: 0 | BJ29: 0 | BK29: 0 | BL29: 0 | BM29: 0 | BN29: 0 | BO29: 0 | BP29: 0 | BQ29: 0 | BR29: 0 | BS29: 0 | BT29: 0 | BU29: =$E$29/$F$29*BU19 -> 0 | BV29: 0 | BW29: 0 | BX29: 0 | BY29: 0 | BZ29: 0 | CA29: 0 | CB29: 0 | CC29: 0 | CD29: 0 | CE29: 0 | CF29: 0 | CG29: 0 | CH29: 0 | CI29: 0 | CJ29: 0 | CK29: 0 | CL29: 0 | CM29: 0 | CN29: 0 | CO29: 0 | CP29: 0 | CQ29: 0 | CR29: 0 | CS29: 0 | CT29: 0 | CU29: 0 | CV29: 0 | CW29: 0 | CX29: 0 | CY29: 0 | CZ29: 0 | DA29: 0 | DB29: 0 | DC29: 0 | DD29: 0 | DE29: 0 | DF29: 0 | DG29: 0 | DH29: 0 | DI29: 0 | DJ29: 0 | DK29: 0 | DL29: 0 | DM29: 0 | DN29: 0 | DO29: 0 | DP29: 0 | DQ29: 0 | DR29: 0 | DS29: 0 | DT29: 0 | DU29: 0 | DV29: 0 | DW29: 0 | DX29: 0 | DY29: 0 | DZ29: 0 | EA29: 0 | EB29: 0 | EC29: 0 | ED29: 0 | EE29: 0 | EF29: 0 | EG29: =$E$29/$F$29*EG19 -> 0 | EH29: 0 | EI29: 0 | EJ29: 0 | EK29: 0 | EL29: 0 | EM29: 0 | EN29: 0 | EO29: 0 | EP29: 0 | EQ29: 0 | ER29: 0 | ES29: 0 | ET29: 0 | EU29: 0 | EV29: 0 | EW29: 0 | EX29: 0 | EY29: 0 | EZ29: 0 | FA29: 0 | FB29: 0 | FC29: 0 | FD29: 0 | FE29: 0 | FF29: 0 | FG29: 0 | FH29: 0 | FI29: 0 | FJ29: 0 | FK29: 0 | FL29: 0 | FM29: 0 | FN29: 0 | FO29: 0 | FP29: 0 | FQ29: 0 | FR29: 0 | FS29: 0 | FT29: 0 | FU29: 0 | FV29: 0 | FW29: 0 | FX29: 0 | FY29: 0 | FZ29: 0 | GA29: 0 | GB29: 0 | GC29: 0 | GD29: 0 | GE29: 0 | GF29: 0 | GG29: 0 | GH29: 0 | GI29: 0 | GJ29: 0 | GK29: 0 | GL29: 0 | GM29: 0 | GN29: 0 | GO29: 0 | GP29: 0 | GQ29: 0 | GR29: 0 | GS29: =$E$29/$F$29*GS19 -> 0 | GT29: 0 | GU29: 0 | GV29: 0 | GW29: 0 | GX29: 0 | GY29: 0 | GZ29: 0 | HA29: 0 | HB29: 0 | HC29: 0 | HD29: 0 | HE29: 0 | HF29: 0 | HG29: 0 | HH29: 0 | HI29: 0 | HJ29: 0 | HK29: 0 | HL29: 0 | HM29: 0 | HN29: 0 | HO29: 0 | HP29: 0 | HQ29: 0 | HR29: 0 | HS29: 0 | HT29: 0 | HU29: 0 | HV29: 0 | HW29: 0 | HX29: 0 | HY29: 0 | HZ29: 0 | IA29: 0 | IB29: 0 | IC29: 0 | ID29: 0 | IE29: 0 | IF29: 0 | IG29: 0 | IH29: 0 | II29: 0 | IJ29: 0
C30: Operating Cash Flow | D30: Per Cash | E30: =Annual_Cash_Flow/Periods_per_yr_Opearion -> 20000 | H30: =$E$30*H26 -> 0 | I30: 0 | J30: 0 | K30: 0 | L30: 0 | M30: 0 | N30: 0 | O30: 0 | P30: 0 | Q30: 0 | R30: 0 | S30: 0 | T30: 0 | U30: 0 | V30: 0 | W30: 0 | X30: 0 | Y30: 0 | Z30: 0 | AA30: 0 | AB30: 0 | AC30: 0 | AD30: 0 | AE30: 0 | AF30: 20000 | AG30: 20000 | AH30: 20000 | AI30: 20000 | AJ30: 20000 | AK30: 20000 | AL30: 20000 | AM30: 20000 | AN30: 20000 | AO30: 20000 | AP30: 20000 | AQ30: 20000 | AR30: 20000 | AS30: 20000 | AT30: 20000 | AU30: 20000 | AV30: 20000 | AW30: 20000 | AX30: 20000 | AY30: 20000 | AZ30: 20000 | BA30: 20000 | BB30: 20000 | BC30: 20000 | BD30: 20000 | BE30: 20000 | BF30: 20000 | BG30: 20000 | BH30: 20000 | BI30: 20000 | BJ30: 20000 | BK30: 20000 | BL30: 20000 | BM30: 20000 | BN30: 20000 | BO30: 20000 | BP30: 20000 | BQ30: 20000 | BR30: 20000 | BS30: 20000 | BT30: =$E$30*BT26 -> 20000 | BU30: 20000 | BV30: 20000 | BW30: 20000 | BX30: 20000 | BY30: 20000 | BZ30: 20000 | CA30: 20000 | CB30: 20000 | CC30: 20000 | CD30: 20000 | CE30: 20000 | CF30: 20000 | CG30: 20000 | CH30: 20000 | CI30: 20000 | CJ30: 0 | CK30: 0 | CL30: 0 | CM30: 0 | CN30: 0 | CO30: 0 | CP30: 0 | CQ30: 0 | CR30: 0 | CS30: 0 | CT30: 0 | CU30: 0 | CV30: 0 | CW30: 0 | CX30: 0 | CY30: 0 | CZ30: 0 | DA30: 0 | DB30: 0 | DC30: 0 | DD30: 0 | DE30: 0 | DF30: 0 | DG30: 0 | DH30: 0 | DI30: 0 | DJ30: 0 | DK30: 0 | DL30: 0 | DM30: 0 | DN30: 0 | DO30: 0 | DP30: 0 | DQ30: 0 | DR30: 0 | DS30: 0 | DT30: 0 | DU30: 0 | DV30: 0 | DW30: 0 | DX30: 0 | DY30: 0 | DZ30: 0 | EA30: 0 | EB30: 0 | EC30: 0 | ED30: 0 | EE30: 0 | EF30: =$E$30*EF26 -> 0 | EG30: 0 | EH30: 0 | EI30: 0 | EJ30: 0 | EK30: 0 | EL30: 0 | EM30: 0 | EN30: 0 | EO30: 0 | EP30: 0 | EQ30: 0 | ER30: 0 | ES30: 0 | ET30: 0 | EU30: 0 | EV30: 0 | EW30: 0 | EX30: 0 | EY30: 0 | EZ30: 0 | FA30: 0 | FB30: 0 | FC30: 0 | FD30: 0 | FE30: 0 | FF30: 0 | FG30: 0 | FH30: 0 | FI30: 0 | FJ30: 0 | FK30: 0 | FL30: 0 | FM30: 0 | FN30: 0 | FO30: 0 | FP30: 0 | FQ30: 0 | FR30: 0 | FS30: 0 | FT30: 0 | FU30: 0 | FV30: 0 | FW30: 0 | FX30: 0 | FY30: 0 | FZ30: 0 | GA30: 0 | GB30: 0 | GC30: 0 | GD30: 0 | GE30: 0 | GF30: 0 | GG30: 0 | GH30: 0 | GI30: 0 | GJ30: 0 | GK30: 0 | GL30: 0 | GM30: 0 | GN30: 0 | GO30: 0 | GP30: 0 | GQ30: 0 | GR30: =$E$30*GR26 -> 0 | GS30: 0 | GT30: 0 | GU30: 0 | GV30: 0 | GW30: 0 | GX30: 0 | GY30: 0 | GZ30: 0 | HA30: 0 | HB30: 0 | HC30: 0 | HD30: 0 | HE30: 0 | HF30: 0 | HG30: 0 | HH30: 0 | HI30: 0 | HJ30: 0 | HK30: 0 | HL30: 0 | HM30: 0 | HN30: 0 | HO30: 0 | HP30: 0 | HQ30: 0 | HR30: 0 | HS30: 0 | HT30: 0 | HU30: 0 | HV30: 0 | HW30: 0 | HX30: 0 | HY30: 0 | HZ30: 0 | IA30: 0 | IB30: 0 | IC30: 0 | ID30: 0 | IE30: 0 | IF30: 0 | IG30: 0 | IH30: 0 | II30: 0 | IJ30: 0
C31: Net Cash Flow | H31: =H30-H29 -> -5208.333333 | I31: -5208.333333 | J31: -5208.333333 | K31: -5208.333333 | L31: -5208.333333 | M31: -5208.333333 | N31: -5208.333333 | O31: -5208.333333 | P31: -5208.333333 | Q31: -5208.333333 | R31: -5208.333333 | S31: -5208.333333 | T31: -5208.333333 | U31: -5208.333333 | V31: -5208.333333 | W31: -5208.333333 | X31: -5208.333333 | Y31: -5208.333333 | Z31: -5208.333333 | AA31: -5208.333333 | AB31: -5208.333333 | AC31: -5208.333333 | AD31: -5208.333333 | AE31: -5208.333333 | AF31: 20000 | AG31: 20000 | AH31: 20000 | AI31: 20000 | AJ31: 20000 | AK31: 20000 | AL31: 20000 | AM31: 20000 | AN31: 20000 | AO31: 20000 | AP31: 20000 | AQ31: 20000 | AR31: 20000 | AS31: 20000 | AT31: 20000 | AU31: 20000 | AV31: 20000 | AW31: 20000 | AX31: 20000 | AY31: 20000 | AZ31: 20000 | BA31: 20000 | BB31: 20000 | BC31: 20000 | BD31: 20000 | BE31: 20000 | BF31: 20000 | BG31: 20000 | BH31: 20000 | BI31: 20000 | BJ31: 20000 | BK31: 20000 | BL31: 20000 | BM31: 20000 | BN31: 20000 | BO31: 20000 | BP31: 20000 | BQ31: 20000 | BR31: 20000 | BS31: 20000 | BT31: =BT30-BT29 -> 20000 | BU31: 20000 | BV31: 20000 | BW31: 20000 | BX31: 20000 | BY31: 20000 | BZ31: 20000 | CA31: 20000 | CB31: 20000 | CC31: 20000 | CD31: 20000 | CE31: 20000 | CF31: 20000 | CG31: 20000 | CH31: 20000 | CI31: 20000 | CJ31: 0 | CK31: 0 | CL31: 0 | CM31: 0 | CN31: 0 | CO31: 0 | CP31: 0 | CQ31: 0 | CR31: 0 | CS31: 0 | CT31: 0 | CU31: 0 | CV31: 0 | CW31: 0 | CX31: 0 | CY31: 0 | CZ31: 0 | DA31: 0 | DB31: 0 | DC31: 0 | DD31: 0 | DE31: 0 | DF31: 0 | DG31: 0 | DH31: 0 | DI31: 0 | DJ31: 0 | DK31: 0 | DL31: 0 | DM31: 0 | DN31: 0 | DO31: 0 | DP31: 0 | DQ31: 0 | DR31: 0 | DS31: 0 | DT31: 0 | DU31: 0 | DV31: 0 | DW31: 0 | DX31: 0 | DY31: 0 | DZ31: 0 | EA31: 0 | EB31: 0 | EC31: 0 | ED31: 0 | EE31: 0 | EF31: =EF30-EF29 -> 0 | EG31: 0 | EH31: 0 | EI31: 0 | EJ31: 0 | EK31: 0 | EL31: 0 | EM31: 0 | EN31: 0 | EO31: 0 | EP31: 0 | EQ31: 0 | ER31: 0 | ES31: 0 | ET31: 0 | EU31: 0 | EV31: 0 | EW31: 0 | EX31: 0 | EY31: 0 | EZ31: 0 | FA31: 0 | FB31: 0 | FC31: 0 | FD31: 0 | FE31: 0 | FF31: 0 | FG31: 0 | FH31: 0 | FI31: 0 | FJ31: 0 | FK31: 0 | FL31: 0 | FM31: 0 | FN31: 0 | FO31: 0 | FP31: 0 | FQ31: 0 | FR31: 0 | FS31: 0 | FT31: 0 | FU31: 0 | FV31: 0 | FW31: 0 | FX31: 0 | FY31: 0 | FZ31: 0 | GA31: 0 | GB31: 0 | GC31: 0 | GD31: 0 | GE31: 0 | GF31: 0 | GG31: 0 | GH31: 0 | GI31: 0 | GJ31: 0 | GK31: 0 | GL31: 0 | GM31: 0 | GN31: 0 | GO31: 0 | GP31: 0 | GQ31: 0 | GR31: =GR30-GR29 -> 0 | GS31: 0 | GT31: 0 | GU31: 0 | GV31: 0 | GW31: 0 | GX31: 0 | GY31: 0 | GZ31: 0 | HA31: 0 | HB31: 0 | HC31: 0 | HD31: 0 | HE31: 0 | HF31: 0 | HG31: 0 | HH31: 0 | HI31: 0 | HJ31: 0 | HK31: 0 | HL31: 0 | HM31: 0 | HN31: 0 | HO31: 0 | HP31: 0 | HQ31: 0 | HR31: 0 | HS31: 0 | HT31: 0 | HU31: 0 | HV31: 0 | HW31: 0 | HX31: 0 | HY31: 0 | HZ31: 0 | IA31: 0 | IB31: 0 | IC31: 0 | ID31: 0 | IE31: 0 | IF31: 0 | IG31: 0 | IH31: 0 | II31: 0 | IJ31: 0
C33: IRR on Net Cash Flow | G33: =XIRR(H31:IJ31,H23:IJ23) -> 0.2678458869

Sheet Annual Exercise
E3: =YEAR(Start_of_Construction) -> 2015 | F3: =E3+1 -> 2016 | G3: =F3+1 -> 2017 | H3: 2018 | I3: 2019 | J3: 2020 | K3: 2021 | L3: 2022 | M3: 2023 | N3: 2024 | O3: 2025 | P3: 2026 | Q3: 2027 | R3: 2028 | S3: 2029 | T3: 2030 | U3: 2031 | V3: 2032 | W3: 2033 | X3: 2034 | Y3: 2035 | Z3: 2036 | AA3: 2037 | AB3: 2038 | AC3: 2039 | AD3: 2040 | AE3: 2041 | AF3: 2042 | AG3: 2043 | AH3: 2044 | AI3: 2045 | AJ3: =AI3+1 -> 2046 | AK3: 2047 | AL3: 2048 | AM3: 2049
D4: Construction Exp
D5: Operating Cash Flow
D6: Net Cash Flow
D8: Project IRR

Sheet Settings
E2: Periods/yr | F2: Days 360
D4: Monthly | E4: 12 | F4: =12/E4*30 -> 30
D5: Quarterly | E5: 4 | F5: =12/E5*30 -> 90
D6: Semi-Annual | E6: 2 | F6: =12/E6*30 -> 180
D7: Annual | E7: 1 | F7: =12/E7*30 -> 360

Sheet Advertising
C2: High Quality Modelling, Finance and Energy Courses
C4: This page is my advertising and publicity - You can of course delete the page without affecting the model
C6: I have taught classes for many years and I believe I have learned from my mistakes and can offer high quality courses
C8: Here is my simple concept
D9: 1. Deliver the courses at a reasonable price -- I will do quite well if a lot of people attend and I will survive if course numbers are low
E10: USD 1,000 -2,000 for courses in Europe
E11: USD 750 - 1,500 for courses in Africa and Latin America
D12: 2. Do not cancel the classes as long as one student has signed up (I take the risk of low numbers and not you)
D13: 3. Limit the size of the classes to 25 participants
D14: 4. Lunches are offered by not with a four course elaborate menu -- we assume that you are attending the course to learn and not to have a fancy lunch
C16: Download Outlines at | I16: www.FinanceEnergyInstitute.com
C17: Check for upcomming dates | I17: www.FinanceEnergyInstitute.com
C19: Customised In-Company Courses
C21: I also offer courses tailored for single institutions (or combinations of institutions)
C22: Depending on various considerations my rate is USD 1,500 to USD 2,000 per day plus expenses
C24: Contact Details
D25: E-mail | I25: edwardbodmer@gmail.com
D26: Phone | I26: 001-630-886-2754
D28: Skype | I28: edward.bodmer
D29: Link to Book
